{"text_format":"3","workbook":"xlsx","n_sheets":1,"sheets":["Distribuição AV"],"not_rendered":{"images":1,"external_links":1,"defined_names":15,"comments":1},"read":"whole","date_system":"1900"}

{"sheet":"Distribuição AV","index":0,"n_rows":38,"n_cols":83,"rows_kept":38,"merged":[[2,0,2,82],[4,0,4,82],[6,0,6,82],[7,1,7,23],[7,24,7,35],[7,41,7,50],[7,52,7,73],[7,76,7,80]]}
[]
[]
["ANEXO IB"]
[]
["PREGÃO PRESENCIAL Nº "]
[]
["DISTRIBUIÇÃO DOS EQUIPAMENTOS"]
[null,"ENAI/PRESIDENCIAVEIS",{"$nulls":22},"CIDADE INTELIGENTE",{"$nulls":16},"ESCOLA INTELIGENTE",{"$nulls":10},"SALA OPERACIONAIS",{"$nulls":23},"OUTRAS ESTRUTURAS"]
["Equipamentos","ESTANDE FEDERAÇÕES","ESTANDE INTEGRADO","SALA DE JORNALISMO CNI","SALA COLETIVA DE IMPRENSA","SALA PRESIDENTE SECRETÁRIA","AUDITÓRIO/PALCO","SALA DDI","SALA DIRCOM","SALA ORGANIZAÇÃO","SALA FECHAMENTOS GERAIS","ESTUDIO DE TV","BALCÃO DE AEROPORTO","SINALIZAÇÃO","SALA APOIO PALCO","DEPÓSITO FEDERAÇÕES","RESTAURANTE/PÓRTICO RESTAURANTE","SALA DE IMPRENSA EDIÇÃO DE VÍDEO","SALA PARA G1","REDAÇÃO AGÊNCIA CNI","REDAÇÃO REDES SOCIAIS","ESPAÇO PARA FOTOGRAFIA","ESPAÇO PARA ASSESSORIA DE IMPRENSA E ATENDIMENTO AS FEDERAÇÕES","SECRETARIA E AUTOCREDENCIAMENTO","CASA INTELIGENTE","RECURSOS NATURAIS","CONSTRUÇÃO DE HABITAÇÃO","POSTO DE RECARGA","INDÚSTRIA","ATENÇÃO A SAÚDE","MODA","CONFEITARIA","PREFEITURA","PARQUE","MUSEU DO FUTURO","UNIDADES MÓVEIS","CIDADE INTELIGENTE","PORTAL","HALL","LOUNGE STREAMING","COZINHA CASA INTELIGENTE","SAÍDA DA CIDADE / HALL DE ENTRADA DA ESCOLA","ESPAÇO MAKER","SESI MATEMÁTICA","GRAND PRIX SESI SENAI DE INOVAÇÃO","MOSTRA DE CIÊNCIAS E ENGENHARIA","INOVA SENAI / HACKATON","ARENA DO CONHECIMENTO","ROBÓTICA SESI SENAI","DESAFIO DE ROBÓTICA NA INDÚSTRIA","ÁREA DE ALIMENTAÇÃO FOOD TRUCK","SALA DE COORDENAÇÃO INOVA","ALMOXARIFADO","EQUIPAMENTOS DE ÁUDIO E VIDEO","EQUIPE DE MICROS","EQUIPE DE TI","OFICINA 01","DEPÓSITO 01","DEPÓSITO 02","EXPEDIÇÃO / RECEBIMENTO","EQUIPE DE MONTAGEM TI","EQUIPE DE MONTAGEM ELÉTRICA","EQUIPE DE MONTAGEM HIDRÁULICA E PNEUMÁTICA","EQUIPE DE MONTAGEM SUPERVISORES","COORDENÇÃO TÉCNICA / SECRETARIA GERAL","SALA DE REUNIÃO - PISO 02 - 12 PESSOAS","SALA COORDENADOR EXECUTIVO ","SALA REUNIÃO 40 LUGARES","SALA DE APOIO INTELIGENTE","SALA DE COODENAÇÃO INOVA","SALA TÉCNICOS SEGURANÇA DO TRABALHO","SALA TRANSPORTE VISITAÇÃO","SALA DEPÓSITO DE EQUIPAMENTOS","POSTO MÉDICO","SALA COORDENÇÃO EXECUTIVA","SALA DE REUNIÃO 10 PESSOAS / PISO 04","PÓRTICO DE ENTRADA","PÓRTICO DE ENTRADA FOOD TRUCK","DISPLAY PARA DISTRIBUIÇÃO DE ÁGUA","COMUNICAÇÃO VISUAL","COMUNICAÇÃO VISULA / DIAGRAMAÇÃO","Locação Inicial","Locação Prevista"]
["01 - Data Show / Projetor + Tela + Notebook",{"$nulls":31},2,{"$nulls":15},1,{"$nulls":32},{"$f":"SUM(B10:CC10)","v":3},{"$f":"ROUND(CD10*1.3,0)","v":4}]
["02 - Mesa de Som Tipo I",1,{"$nulls":46},1,{"$nulls":32},2,{"$f":"ROUND(CD11*1.3,0)","v":3}]
["03 - Mesa de Som Tipo II",{"$nulls":80},0,{"$f":"ROUND(CD12*1.3,0)+1","v":1}]
["04 - Microfone sem fio tipo bastão com pedestal",2,{"$nulls":46},2,{"$nulls":4},10,{"$nulls":27},14,18]
["05 - Microfone de lapela + body pack",{"$nulls":80},0,{"$f":"ROUND(CD14*1.3,0)+5","v":5}]
["06 - Passador de Slider (Presenter)",{"$nulls":47},1,{"$nulls":4},10,{"$nulls":27},11,{"$f":"ROUND(CD15*1.3,0)+5","v":19}]
["07 - Caixa Acusticas com tripé",2,{"$nulls":46},2,{"$nulls":32},4,5]
["08 - Regua de Alimentação",2,{"$nulls":51},20,{"$nulls":27},22,29]
["09 - Conversor AD/DA ",{"$nulls":52},1,{"$nulls":27},1,{"$f":"ROUND(CD18*1.3,0)+1","v":2}]
["10- Distribuidor HDMI",{"$nulls":52},5,{"$nulls":27},5,{"$f":"ROUND(CD19*1.3,0)+1","v":8}]
["11 - Microfone Head Set + body pack",{"$nulls":52},2,{"$nulls":27},2,{"$f":"ROUND(CD20*1.3,0)+2","v":5}]
["12 - Suporte TV42\" para chão com angulação de 45°",{"$nulls":52},2,{"$nulls":27},2,{"$f":"ROUND(CD21*1.3,0)+2","v":5}]
["13 - Suporte para TV com tripé",{"$nulls":80},0,{"$f":"ROUND(CD22*1.3,0)+2","v":2}]
["14 - Scaler de video",{"$nulls":52},1,{"$nulls":27},1,{"$f":"ROUND(CD23*1.3,0)+1","v":2}]
["15 - TV 42\" para Pen-drive + Suporte para TV com tripé",{"$nulls":29},1,null,null,1,{"$nulls":8},7,null,12,{"$nulls":3},2,2,{"$nulls":3},10,{"$nulls":27},35,46]
["16 - TV 42\" + Suporte para TV com tripé + Notebook + Teclado sem fio + Presenter",{"$nulls":47},8,2,{"$nulls":3},5,{"$nulls":11},1,{"$nulls":5},1,null,null,1,1,{"$nulls":5},19,25]
["17 - TV 50\"  para Pen-drive + Suporte para TV com tripé",null,null,1,4,1,{"$nulls":23},1,null,null,6,{"$nulls":3},10,{"$nulls":16},1,{"$nulls":27},24,31]
["18 - Cabo HDMI v1.4",{"$nulls":3},4,{"$nulls":31},50,{"$nulls":7},28,{"$nulls":8},10,{"$nulls":27},92,120]
["Kit para salas de Reunião 1 (até 20 pessoas, com mesa de som, passador de slides, projetor, tela de projeção, caixas acústicas, microfone lapela, microfone sem fio) ",{"$nulls":45},2,null,1,null,null,1,null,2,{"$nulls":27},6,8]
["Kit para salas de Reunião 2 (até 100 pessoas, com mesa de som, passador de slides, projetores, telas de projeção, caixas acústicas, distribuidor VGA, Cabos de VGA, microfone lapela, microfones sem fio (4)",{"$nulls":43},1,null,null,1,{"$nulls":17},1,null,1,{"$nulls":13},4,5]
["Kit com DEZ microfones UHF com seletor de frequencias volantes para os repórteres fazerem perguntas,\nCaixa de som 12\" QSC bi amplificada,\nColméia de madeira para 50 gravadores e suporte de acrílico para 10 microfones de emissoras de rádio e TV.\n",{"$nulls":3},1,{"$nulls":76},1,1]
["02 caixas ativas 12\" QSC bi amplificada",2,{"$nulls":79},2,3]
["Sistema de sonorização, 08 caixas de som para sistema line Array 402, 02 mesas de áudio digital M7CL, 02 caixas de monitor, 4 microfones sem fio Shure, 04 microfones goosneck, \n\n100 metros de cabo sinal.\nCaixa de som com colméia para 50 gravadores e microfones de emissoras de rádio e TV\n04 TV 55´, 01 distribuidor de vídeo HD SDI, 01 distribuidor de áudio XLR 10 saídas e 04 conversores HDSDI HDML\n200m Cabarias para transmissão - cabo HDSDI com conversores HDSDI/HDMI TX e RX",{"$nulls":3},1,{"$nulls":76},1,1]
["TV de 20 - USB",{"$nulls":41},16,{"$nulls":38},16,21]
["Sonorização composta por: 08 caixas de som ativa 100W; 01 mesa de som Yamaha de 12 canais; 01 microfone sem fio Shure; 01 CD player; e 01 operador.",{"$nulls":36},1,{"$nulls":43},1,1]
["Sistema de sonorização composta por: 20 caixas de 100W; 01 mesa de som Yamaha de 12 canais; 01 microfone sem fio Shure; 01 CD player; e 01 operador.",{"$nulls":37},1,{"$nulls":42},1,1]
["Sistema de sonorização composta por: 4 caixas de som ativa de 100w; 1 caixa de som Yamaha 12 canais e 1 microfone sem fio uhf com seletor de frenquencia",{"$nulls":38},1,1,{"$nulls":40},2,3]
["microfone countryman + Bodypack",{"$nulls":38},2,2,{"$nulls":40},4,5]
["Total Geral",{"$f":"SUM(B10:B37)","v":9},{"$f":"SUM(C10:C37)","v":0},1,10,1,0,0,0,0,0,0,0,0,0,0,0,0,0,0,0,0,0,0,0,0,0,0,0,1,1,0,8,1,0,0,60,1,1,3,3,0,23,0,41,0,2,1,18,4,0,1,0,79,0,0,0,0,0,0,0,0,0,0,0,2,{"$f":"SUM(BO10:BO37)","v":0},1,0,0,0,1,0,0,1,1,0,0,0,0,0,275,379]